fUST/lending_fUST_20250529
["ID","MTS","AMOUNT","RATE_DAILY","PERIOD"]
[362884941,1748509845467,-430.0,0.00020821,2]
[362884942,1748509845476,-305.36856649,0.00020821,2]
[362884943,1748509845486,-469.92,0.00020821,2]
[362884945,1748509845495,-549.14,0.00020821,2]
[362884946,1748509845504,-445.02725255,0.00020859,2]
[362884947,1748509845513,-151.0,0.00020917,2]
[362884948,1748509845523,-151.0,0.00020917,2]
[362884949,1748509845532,-264.27149459,0.00021056,2]
[362884950,1748509845542,-835.12,0.00021094,2]
[362884951,1748509845551,-430.0,0.00021094,2]
[362884952,1748509845560,-430.0,0.00021094,2]
[362884953,1748509845569,-488.37,0.00021094,2]
[362884954,1748509845579,-430.0,0.00021094,2]
[362884955,1748509845588,-430.0,0.00021094,2]
[362884956,1748509845597,-151.0,0.00021095,2]
[362884957,1748509845606,-1199.697648,0.00021095,2]
[362884958,1748509845772,-430.0,0.00021095,2]
[362884959,1748509845784,-430.0,0.00021095,2]
[362884960,1748509845793,-469.92,0.00021095,2]
[362884962,1748509845802,-549.14,0.00021095,2]
[362884963,1748509845812,-379.3791717,0.00021151,2]
[362884964,1748509845821,-390.2066405,0.00021151,2]
[362884965,1748509845831,-316.5500156,0.00021151,2]
[362884966,1748509845842,-1143.3027026,0.00021151,2]
[362884967,1748509845852,-153.0,0.00021151,2]
[362884968,1748509845862,-217.0,0.00021154,10]
[362884969,1748509845871,-500.0,0.00021164,2]
[362884970,1748509845881,-364.176416,0.00021178,2]
[362884971,1748509845891,-835.12,0.00021368,2]
[362884972,1748509845901,-430.0,0.00021368,2]
[362884973,1748509845911,-430.0,0.00021368,2]
[362884974,1748509845921,-488.37,0.00021368,2]
[362884975,1748509845931,-430.0,0.00021368,2]
[362884976,1748509845941,-430.0,0.00021368,2]
[362884977,1748509845951,-430.0,0.00021369,2]
[362884978,1748509845961,-430.0,0.00021369,2]
[362884979,1748509845970,-469.92,0.00021369,2]
[362884980,1748509845979,-549.14,0.00021369,2]
[362884981,1748509845990,-205.34647741,0.000214,5]
[362884982,1748509846002,-2534.04,0.00021577,2]
[362884983,1748509846012,-167.0,0.000216,7]
[362884984,1748509846022,-167.0,0.000216,7]
[362884985,1748509846032,-167.0,0.000216,5]
[362884986,1748509846043,-167.64,0.000216,5]
[362884987,1748509846054,-500.0,0.00021611,2]
[362884988,1748509846064,-835.12,0.00021642,2]
[362884989,1748509846076,-430.0,0.00021642,2]
[362884990,1748509846297,-430.0,0.00021642,2]
[362884991,1748509846308,-488.37,0.00021642,2]
[362884992,1748509846318,-430.0,0.00021642,2]
[362884993,1748509846328,-430.0,0.00021642,2]
[362884994,1748509846338,-430.0,0.00021643,2]
[362884995,1748509846348,-430.0,0.00021643,2]
[362884996,1748509846359,-469.92,0.00021643,2]
[362884997,1748509846368,-549.14,0.00021643,2]
[362884998,1748509846378,-500.0,0.00021699,2]
[362884999,1748509846388,-500.0,0.00021699,2]
[362885000,1748509846399,-500.0,0.00021699,2]
[362885001,1748509846410,-500.0,0.00021699,2]
[362885002,1748509846420,-283.99635424,0.00021699,2]
[362885003,1748509846430,-500.0,0.00021699,2]
[362885004,1748509846439,-500.0,0.00021699,2]
[362885006,1748509846449,-500.0,0.00021699,2]
[362885008,1748509846460,-246.72395739,0.00021699,2]
[362885009,1748509846469,-500.0,0.00021699,2]
[362885010,1748509846479,-500.0,0.00021699,2]
[362885012,1748509846488,-500.0,0.00021699,2]
[362885014,1748509846498,-500.0,0.00021699,2]
[362885017,1748509846507,-500.0,0.00021699,2]
[362885020,1748509846516,-500.0,0.00021699,2]
[362885022,1748509846526,-500.0,0.00021699,2]
[362885025,1748509846536,-500.0,0.00021699,2]
[362885026,1748509846546,-500.0,0.00021699,2]
[362885027,1748509846557,-3357.33216306,0.000217,2]
[362885028,1748509846567,-260.193101,0.00021747,3]
[362885029,1748509846577,-2211.57561748,0.0002181,7]
[362885030,1748509846586,-151.0,0.0002181,2]
[362885031,1748509846595,-151.0,0.0002181,2]
[362885032,1748509846604,-151.0,0.0002181,2]
[362885033,1748509846614,-12660.97845086,0.0002181,7]
[362885034,1748509846623,-835.12,0.00021916,2]
[362885036,1748509846633,-430.0,0.00021916,2]
[362885038,1748509846642,-430.0,0.00021916,2]
[362885040,1748509846652,-488.37,0.00021916,2]
[362885042,1748509846662,-430.0,0.00021916,2]
[362885044,1748509846671,-430.0,0.00021916,2]
[362885046,1748509846680,-151.0,0.00021917,2]
[362885048,1748509846690,-430.0,0.00021917,2]
[362885050,1748509846699,-430.0,0.00021917,2]
[362885052,1748509846708,-469.92,0.00021917,2]
[362885054,1748509846718,-549.14,0.00021917,2]
[362885056,1748509846727,-205.34647741,0.00021983,6]
[362885058,1748509846736,-167.0,0.00022,10]
[362885060,1748509846745,-30240.0,0.00022,2]
[362885062,1748509846754,-151.0,0.00022,7]
[362885064,1748509846763,-151.0,0.00022,7]
[362885066,1748509846771,-151.0,0.00022,7]
[362885068,1748509846781,-151.0,0.00022,7]
[362885070,1748509846789,-151.0,0.00022,7]
[362885072,1748509846799,-1199.697648,0.00022,7]
[362885074,1748509846808,-177.0,0.00022,2]
[362885076,1748509846817,-215.0738,0.0002216,2]
[362885078,1748509846827,-835.12,0.0002219,2]
[362885080,1748509846837,-430.0,0.0002219,2]
[362885082,1748509846847,-430.0,0.0002219,2]
[362885084,1748509846857,-488.37,0.0002219,2]
[362885086,1748509846867,-430.0,0.0002219,2]
[362885088,1748509846876,-430.0,0.0002219,2]
[362885089,1748509846886,-430.0,0.00022191,2]
[362885090,1748509846898,-430.0,0.00022191,2]
[362885091,1748509846909,-469.92,0.00022191,2]
[362885092,1748509846918,-549.14,0.00022191,2]
[362885093,1748509846928,-500.0,0.0002226,2]
[362885094,1748509846938,-2896.05,0.00022376,2]
[362885095,1748509846948,-835.12,0.00022464,2]
[362885096,1748509846957,-430.0,0.00022464,2]
[362885097,1748509846967,-430.0,0.00022464,2]
[362885098,1748509846977,-488.37,0.00022464,2]
[362885099,1748509846986,-430.0,0.00022464,2]
[362885100,1748509846997,-430.0,0.00022464,2]
[362885101,1748509847012,-542.04005228,0.00022465,2]
[362885102,1748509847022,-554.4739485,0.00022465,2]
[362885103,1748509847031,-469.92,0.00022465,2]
[362885104,1748509847042,-549.14,0.00022465,2]
[362885105,1748509847052,-205.34647741,0.00022567,7]
[362885106,1748509847062,-500.0,0.00022691,2]
[362885107,1748509847072,-835.12,0.00022738,2]
[362885108,1748509847082,-430.0,0.00022738,2]
[362885109,1748509847091,-430.0,0.00022738,2]
[362885110,1748509847101,-488.37,0.00022738,2]
[362885111,1748509847111,-430.0,0.00022738,2]
[362885112,1748509847121,-430.0,0.00022738,2]
[362885113,1748509847131,-469.92,0.00022739,2]
[362885114,1748509847141,-549.14,0.00022739,2]
[362885115,1748509847151,-151.0,0.00022774,7]
[362885116,1748509847161,-639.0,0.000229,2]
[362885117,1748509847171,-870.5,0.00023,2]
[362885118,1748509847180,-1010.81547453,0.00023,2]
[362885119,1748509847189,-1000.0,0.00023,23]
[362885120,1748509847199,-835.12,0.00023012,2]
[362885121,1748509847209,-563.596978,0.00023012,2]
[362885122,1748509847218,-430.0,0.00023012,2]
[362885123,1748509847227,-488.37,0.00023012,2]
[362885124,1748509847236,-430.0,0.00023012,2]
[362885125,1748509847247,-430.0,0.00023012,2]
[362885126,1748509847257,-469.92,0.00023013,2]
[362885127,1748509847266,-549.14,0.00023013,2]
[362885128,1748509847275,-178.0,0.00023014,7]
[362885129,1748509847285,-720.0,0.00023108,3]
[362885130,1748509847295,-720.0,0.00023108,3]
[362885131,1748509847304,-720.0,0.00023108,3]
[362885132,1748509847314,-328.95548545,0.00023108,3]
[362885133,1748509847323,-205.34647741,0.0002315,8]
[362885134,1748509847333,-3258.05,0.00023175,2]
[362885135,1748509847343,-800.0,0.00023255,2]
[362885136,1748509847352,-835.12,0.00023286,2]
[362885137,1748509847362,-430.0,0.00023286,2]
[362885138,1748509847372,-488.37,0.00023286,2]
[362885139,1748509847382,-430.0,0.00023286,2]
[362885140,1748509847391,-430.0,0.00023286,2]
[362885141,1748509847402,-151.0,0.00023287,7]
[362885142,1748509847411,-151.0,0.00023287,7]
[362885143,1748509847420,-469.92,0.00023287,2]
[362885144,1748509847429,-549.14,0.00023287,2]
[362885145,1748509847439,-411.542,0.00023307,2]
[362885146,1748509847448,-708.0,0.00023307,2]
[362885147,1748509847458,-2228.0,0.00023307,2]
[362885148,1748509847468,-800.0,0.00023324,2]
[362885149,1748509847478,-800.0,0.00023341,2]
[362885150,1748509847487,-500.0,0.00023356,2]
[362885151,1748509847496,-817.95625133,0.00023395,2]
[362885152,1748509847505,-20204.59,0.000234,30]
[362885154,1748509847515,-151.0,0.000234,7]
[362885156,1748509847524,-151.0,0.000234,7]
[362885158,1748509847534,-12660.97845086,0.000234,30]
[362885160,1748509847543,-800.0,0.00023447,2]
[362885162,1748509847553,-2867.97972048,0.000235,2]
[362885164,1748509847562,-464.9408523,0.00023507,2]
[362885166,1748509847572,-176.3696131,0.00023507,2]
[362885168,1748509847582,-306.0,0.00023507,2]
[362885170,1748509847591,-223.0315306,0.00023529,2]
[362885172,1748509847600,-835.12,0.0002356,2]
[362885174,1748509847609,-430.0,0.0002356,2]
[362885176,1748509847619,-488.37,0.0002356,2]
[362885178,1748509847627,-430.0,0.0002356,2]
[362885180,1748509847636,-430.0,0.0002356,2]
[362885182,1748509847645,-151.0,0.00023561,7]
[362885183,1748509847657,-1199.697648,0.00023561,7]
[362885184,1748509847668,-469.92,0.00023561,2]
[362885185,1748509847678,-549.14,0.00023561,2]
[362885186,1748509847687,-2885.17,0.000236,7]
[362885187,1748509847698,-1239.12,0.000236,7]
[362885188,1748509847711,-72680.04,0.000236,7]
[362885189,1748509847720,-2885.1,0.000236,2]
[362885190,1748509847730,-151.0,0.000236,7]
[362885191,1748509847739,-151.0,0.000236,7]
[362885192,1748509847749,-151.0,0.000236,7]
[362885193,1748509847759,-151.0,0.000236,7]
[362885194,1748509847768,-151.0,0.000236,7]
[362885195,1748509847777,-151.0,0.000236,7]
[362885196,1748509847787,-151.0,0.000236,7]
[362885197,1748509847795,-151.0,0.000236,7]
[362885198,1748509847805,-247.712933,0.000236,7]
[362885199,1748509847815,-280.477172,0.000236,7]
[362885200,1748509847824,-280.477172,0.000236,7]
[362885201,1748509847834,-151.0,0.000236,7]
[362885202,1748509847843,-151.0,0.000236,7]
[362885203,1748509847852,-412.47152,0.000236,7]
[362885204,1748509847862,-412.47152,0.000236,7]
[362885205,1748509847872,-151.0,0.000236,7]
[362885206,1748509847882,-488.440746,0.000236,7]
[362885207,1748509847891,-488.440746,0.000236,7]
[362885208,1748509847904,-151.0,0.00023618,7]
[362885209,1748509847915,-26985.76,0.000237,2]
[362885210,1748509847925,-151.0,0.000237,7]
[362885211,1748509847935,-151.0,0.000237,7]
[362885212,1748509847945,-577.632582,0.000237,7]
[362885213,1748509847955,-577.632582,0.000237,7]
[362885214,1748509847965,-151.0,0.000237,7]
[362885216,1748509847975,-151.0,0.000237,7]
[362885218,1748509847984,-151.0,0.000237,7]
[362885220,1748509847997,-151.0,0.000237,7]
[362885222,1748509848006,-151.0,0.000237,7]
[362885223,1748509848015,-207.673144,0.000237,7]
[362885225,1748509848025,-151.0,0.000237,7]
[362885226,1748509848035,-202.18703,0.000237,7]
[362885227,1748509848044,-202.18703,0.000237,7]
[362885228,1748509848054,-151.0,0.000237,7]
[362885229,1748509848064,-153.16279,0.000237,7]
[362885230,1748509848075,-153.16279,0.000237,7]
[362885231,1748509848088,-162.068121,0.000237,7]
[362885232,1748509848101,-162.068121,0.000237,7]
[362885233,1748509848113,-205.34647741,0.00023733,9]
[362885234,1748509848126,-835.12,0.00023834,2]
[362885235,1748509848138,-430.0,0.00023834,2]
[362885237,1748509848151,-488.37,0.00023834,2]
[362885239,1748509848165,-430.0,0.00023834,2]
[362885241,1748509848176,-430.0,0.00023834,2]
[362885242,1748509848187,-151.0,0.00023835,7]
[362885245,1748509848200,-1199.697648,0.00023835,7]
[362885247,1748509848213,-1199.697648,0.00023835,7]
[362885249,1748509848227,-469.92,0.00023835,2]
[362885251,1748509848238,-549.14,0.00023835,2]
[362885253,1748509848249,-660.77371863,0.000239,2]
[362885255,1748509848259,-3620.05337379,0.00023975,2]
[362885257,1748509848269,-160.0,0.00023999,2]
[362885259,1748509848279,-4727.33406127,0.00024,2]
[362885261,1748509848290,-4721.45823043,0.00024,3]
[362885263,1748509848300,-60380.52805746,0.00024,30]
[362885267,1748509848330,-5500.0,0.00024,30]
[362885919,1748510316991,407.0,0.00024658,120]
[362885921,1748510412651,166.504531,0.00013699,2]
[362885940,1748510988783,409.7372049,0.00024658,120]
[362886756,1748511046432,-497.77,0.00017911,2]
[362889525,1748511487733,166.504531,0.00013699,2]
[362889533,1748511928121,4700.58900245,0.00016,2]
[362889534,1748511928143,299.41099755,0.00016,2]
[362889536,1748512133463,5000.0,0.00016,2]
[362889537,1748512148763,4266.99420245,0.00016,2]
[362889538,1748512148788,733.00579755,0.00016,2]
[362889539,1748512164531,5000.0,0.00016,2]
[362889607,1748512232647,-224.99301087,0.00016204,2]
[362889609,1748512232657,-5000.0,0.00016217,2]
[362889611,1748512232667,-161.0442643,0.0001638,2]
[362889613,1748512232676,-173.37,0.00016381,2]
[362889614,1748512232686,-231.17,0.00017094,2]
[362889616,1748512232696,-1200.0,0.00017105,2]
[362889618,1748512232706,-300.0,0.00017106,2]
[362889620,1748512232715,-300.0,0.00017106,2]
[362889622,1748512232725,-300.0,0.00017106,2]
[362889624,1748512232734,-300.0,0.00017106,2]
[362889626,1748512232744,-242.00030795,0.00017456,2]
[362889628,1748512232753,-152.0,0.00017488,2]
[362889630,1748512232763,-2363.66703064,0.00017542,2]
[362889631,1748512232772,-500.0,0.00017542,2]
[362889633,1748512232784,-500.0,0.00017542,2]
[362889634,1748512232794,-500.0,0.00017542,2]
[362889635,1748512232803,-445.76220143,0.00017542,2]
[362889647,1748512233019,-2360.72911521,0.00017543,3]
[362889648,1748512233029,-24900.0,0.00017543,2]
[362889649,1748512233039,-653.72746393,0.00017691,2]
[362889650,1748512233049,-288.96,0.00017806,2]
[362889651,1748512233058,-300.0,0.00018053,2]
[362889652,1748512233068,-619.6084484,0.000183,2]
[362889653,1748512233078,-619.60844834,0.000183,2]
[362889654,1748512233087,-619.60844834,0.00018383,2]
[362889655,1748512233097,-346.75,0.00018518,2]
[362889656,1748512233107,-242.00030795,0.00018519,2]
[362889657,1748512233117,-619.60844834,0.00018624,2]
[362889658,1748512233127,-420.0,0.00018682,2]
[362889659,1748512233136,-420.0,0.00018682,2]
[362889660,1748512233146,-480.0,0.00018773,2]
[362889661,1748512233155,-619.60844834,0.00018866,2]
[362889662,1748512233165,-270.25790621,0.000189,2]
[362889664,1748512233174,-619.60844834,0.00019107,2]
[362889665,1748512233184,-430.0,0.00019178,2]
[362889667,1748512233193,-430.0,0.00019178,2]
[362889669,1748512233203,-430.0,0.00019178,2]
[362889671,1748512233212,-430.0,0.00019178,2]
[362889673,1748512233221,-430.0,0.00019178,2]
[362889675,1748512233230,-552.78,0.00019178,2]
[362889676,1748512233241,-7033.85,0.00019178,2]
[362889677,1748512233250,-430.0,0.00019178,2]
[362889678,1748512233261,-430.0,0.00019178,2]
[362889679,1748512233271,-188.045625,0.00019178,2]
[362889680,1748512233282,-2540.86500698,0.00019214,2]
[362889681,1748512233292,-404.54,0.0001923,2]
[362889682,1748512233302,-772.62299127,0.00019348,2]
[362889683,1748512233311,-619.60844834,0.00019348,2]
[362889684,1748512233321,-500.0,0.00019419,2]
[362889685,1748512233331,-430.0,0.00019419,2]
[362889686,1748512233340,-430.0,0.00019419,2]
[362889687,1748512233350,-430.0,0.00019419,2]
[362889688,1748512233360,-430.0,0.00019419,2]
[362889689,1748512233370,-496.10316095,0.00019419,2]
[362889690,1748512233380,-1068.69,0.00019419,2]
[362889691,1748512233390,-430.0,0.00019419,2]
[362889692,1748512233400,-430.0,0.00019419,2]
[362889693,1748512233410,-1199.93,0.00019419,2]
[362889694,1748512233421,-545.38,0.00019419,2]
[362889695,1748512233431,-430.0,0.00019419,2]
[362889696,1748512233441,-430.0,0.00019419,2]
[362889697,1748512233451,-433.50589293,0.00019419,2]
[362889698,1748512233461,-430.0,0.00019419,2]
[362889699,1748512233471,-430.0,0.00019419,2]
[362889700,1748512233480,-430.0,0.00019419,2]
[362889701,1748512233490,-430.0,0.00019419,2]
[362889702,1748512233500,-430.0,0.00019419,2]
[362889703,1748512233511,-430.0,0.00019419,2]
[362889704,1748512233522,-430.0,0.00019419,2]
[362889705,1748512233533,-530.0,0.00019419,2]
[362889706,1748512233542,-430.0,0.00019419,2]
[362889707,1748512233552,-440.0,0.00019419,2]
[362889708,1748512233562,-430.0,0.00019419,2]
[362889709,1748512233572,-407.77714249,0.00019419,2]
[362889710,1748512233582,-400.0,0.00019419,2]
[362889711,1748512233592,-430.0,0.00019419,2]
[362889712,1748512233602,-430.0,0.00019419,2]
[362889713,1748512233612,-558.16197052,0.00019419,2]
[362889714,1748512233623,-430.0,0.00019419,2]
[362889715,1748512233633,-487.0002271,0.00019419,2]
[362889716,1748512233643,-430.0,0.00019419,2]
[362889717,1748512233653,-407.08946938,0.00019419,2]
[362889718,1748512233662,-430.0,0.00019419,2]
[362889719,1748512233673,-430.0,0.00019419,2]
[362889720,1748512233683,-430.0,0.00019419,2]
[362889721,1748512233692,-430.0,0.00019419,2]
[362889722,1748512233702,-430.0,0.00019419,2]
[362889723,1748512233711,-430.0,0.00019419,2]
[362889724,1748512233722,-430.0,0.00019419,2]
[362889725,1748512233732,-430.0,0.00019419,2]
[362889726,1748512233742,-430.0,0.00019419,2]
[362889727,1748512233752,-430.0,0.00019419,2]
[362889728,1748512233763,-430.0,0.00019419,2]
[362889729,1748512233773,-430.0,0.00019419,2]
[362889730,1748512233786,-430.0,0.00019419,2]
[362889731,1748512233796,-430.0,0.00019419,2]
[362889732,1748512233806,-430.0,0.00019419,2]
[362889733,1748512233816,-430.0,0.00019419,2]
[362889734,1748512233827,-430.92502755,0.00019419,2]
[362889735,1748512233837,-430.0,0.00019419,2]
[362889736,1748512233846,-430.0,0.00019419,2]
[362889737,1748512233858,-430.0,0.00019419,2]
[362889738,1748512233868,-430.0,0.00019419,2]
[362889739,1748512233878,-430.0,0.00019419,2]
[362889740,1748512233888,-405.69328191,0.00019419,2]
[362889741,1748512233898,-430.0,0.00019419,2]
[362889742,1748512233907,-430.0,0.00019419,2]
[362889743,1748512233917,-430.0,0.00019419,2]
[362889744,1748512233926,-430.0,0.00019419,2]
[362889745,1748512233936,-430.0,0.00019419,2]
[362889746,1748512233945,-402.1938256,0.00019419,2]
[362889747,1748512233955,-430.0,0.00019419,2]
[362889748,1748512233965,-430.0,0.00019419,2]
[362889749,1748512233975,-430.0,0.00019419,2]
[362889750,1748512233985,-430.0,0.00019419,2]
[362889751,1748512233994,-435.81729814,0.00019419,2]
[362889752,1748512234004,-430.0,0.00019419,2]
[362889753,1748512234014,-430.0,0.00019419,2]
[362889754,1748512234024,-430.0,0.00019419,2]
[362889755,1748512234033,-430.0,0.00019419,2]
[362889756,1748512234044,-398.63942026,0.00019419,2]
[362889757,1748512234053,-430.0,0.00019419,2]
[362889758,1748512234063,-430.0,0.00019419,2]
[362889759,1748512234072,-277.62882992,0.00019419,2]
[362889760,1748512234082,-430.0,0.00019419,2]
[362889761,1748512234091,-430.0,0.0001942,2]
[362889762,1748512234101,-401.78527147,0.0001942,2]
[362889763,1748512234111,-430.0,0.0001942,2]
[362889764,1748512234121,-400.8738898,0.0001942,2]
[362889765,1748512234130,-430.0,0.0001942,2]
[362889766,1748512234140,-430.0,0.0001942,2]
[362889767,1748512234149,-430.0,0.0001942,2]
[362889768,1748512234158,-430.0,0.0001942,2]
[362889769,1748512234168,-430.0,0.0001942,2]
[362889770,1748512234177,-430.0,0.0001942,2]
[362889771,1748512234187,-500.0,0.0001942,2]
[362889772,1748512234197,-430.0,0.0001942,2]
[362889773,1748512234207,-430.0,0.0001942,2]
[362889774,1748512234216,-430.0,0.0001942,2]
[362889775,1748512234226,-430.0,0.0001942,2]
[362889776,1748512234235,-430.0,0.0001942,2]
[362889777,1748512234244,-285.83,0.0001942,2]
[362889778,1748512234253,-430.0,0.0001942,2]
[362889779,1748512234264,-587.3,0.0001942,2]
[362889780,1748512234273,-430.0,0.0001942,2]
[362889781,1748512234283,-430.0,0.0001942,2]
[362889782,1748512234292,-430.0,0.0001942,2]
[362889783,1748512234301,-430.0,0.0001942,2]
[362889784,1748512234311,-451.68,0.0001942,2]
[362889785,1748512234320,-430.0,0.0001942,2]
[362889786,1748512234329,-430.0,0.0001942,2]
[362889787,1748512234339,-430.0,0.0001942,2]
[362889788,1748512234348,-430.0,0.0001942,2]
[362889789,1748512234358,-430.0,0.0001942,2]
[362889790,1748512234368,-430.0,0.0001942,2]
[362889791,1748512234377,-561.02,0.0001942,2]
[362889792,1748512234387,-430.0,0.0001942,2]
[362889793,1748512234396,-430.0,0.0001942,2]
[362889794,1748512234406,-430.0,0.0001942,2]
[362889795,1748512234415,-430.0,0.0001942,2]
[362889796,1748512234425,-294.29869052,0.0001942,2]
[362889797,1748512234435,-430.0,0.0001942,2]
[362889798,1748512234444,-436.69522882,0.0001942,2]
[362889799,1748512234454,-430.0,0.0001942,2]
[362889800,1748512234463,-430.0,0.0001942,2]
[362889801,1748512234474,-430.0,0.0001942,2]
[362889802,1748512234483,-430.0,0.0001942,2]
[362889803,1748512234494,-430.0,0.0001942,2]
[362889804,1748512234503,-430.0,0.0001942,2]
[362889805,1748512234515,-430.0,0.0001942,2]
[362889806,1748512234525,-430.0,0.0001942,2]
[362889807,1748512234535,-430.0,0.0001942,2]
[362889808,1748512234544,-430.0,0.0001942,2]
[362889809,1748512234555,-1021.63,0.0001942,2]
[362889810,1748512234564,-430.0,0.0001942,2]
[362889811,1748512234575,-430.0,0.0001942,2]
[362889812,1748512234584,-430.0,0.0001942,2]
[362889813,1748512234593,-400.0,0.0001942,2]
[362889814,1748512234603,-430.0,0.0001942,2]
[362889815,1748512234612,-430.0,0.0001942,2]
[362889816,1748512234622,-420.60112534,0.0001942,2]
[362889817,1748512234632,-430.0,0.0001942,2]
[362889818,1748512234641,-430.0,0.0001942,2]
[362889819,1748512234651,-400.0,0.0001942,2]
[362889820,1748512234660,-430.0,0.0001942,2]
[362889821,1748512234669,-430.0,0.0001942,2]
[362889822,1748512234679,-430.0,0.0001942,2]
[362889823,1748512234688,-430.0,0.0001942,2]
[362889824,1748512234697,-434.39136905,0.0001942,2]
[362889825,1748512234707,-300.0,0.0001942,2]
[362889826,1748512234716,-301.72768799,0.0001942,2]
[362889827,1748512234725,-430.0,0.0001942,2]
[362889828,1748512234735,-500.0,0.0001942,2]
[362889829,1748512234744,-450.0,0.0001942,2]
[362889830,1748512234755,-430.0,0.0001942,2]
[362889831,1748512234765,-430.0,0.0001942,2]
[362889832,1748512234775,-430.0,0.0001942,2]
[362889833,1748512234789,-450.0,0.0001942,2]
[362889834,1748512234799,-430.0,0.0001942,2]
[362889835,1748512234808,-430.0,0.0001942,2]
[362889836,1748512234818,-401.06920622,0.0001942,2]
[362889837,1748512234829,-430.0,0.0001942,2]
[362889838,1748512234839,-400.0,0.0001942,2]
[362889839,1748512234969,-301.76805248,0.0001942,2]
[362889840,1748512234980,-430.0,0.0001942,2]
[362889841,1748512234990,-403.44222611,0.0001942,2]
[362889842,1748512235000,-430.0,0.00019447,2]
[362889843,1748512235011,-483.81,0.00019447,2]
[362889844,1748512235021,-430.0,0.00019447,2]
[362889845,1748512235029,-430.0,0.00019447,2]
[362889846,1748512235039,-475.52,0.00019447,2]
[362889847,1748512235048,-430.0,0.00019447,2]
[362889848,1748512235057,-430.0,0.00019447,2]
[362889849,1748512235067,-664.97,0.00019447,2]
[362889850,1748512235077,-430.0,0.00019447,2]
[362889851,1748512235086,-430.0,0.00019448,2]
[362889852,1748512235095,-452.56514672,0.00019448,2]
[362889853,1748512235104,-430.0,0.00019448,2]
[362889854,1748512235114,-430.0,0.00019448,2]
[362889855,1748512235124,-430.0,0.00019448,2]
[362889856,1748512235134,-430.0,0.00019448,2]
[362889857,1748512235143,-430.0,0.00019448,2]
[362889858,1748512235153,-430.0,0.00019448,2]
[362889859,1748512235162,-430.0,0.00019448,2]
[362889860,1748512235172,-447.08089917,0.00019448,2]
[362889861,1748512235182,-430.0,0.00019448,2]
[362889862,1748512235191,-284.86729303,0.00019448,2]
[362889863,1748512235201,-430.0,0.00019448,2]
[362889864,1748512235211,-430.0,0.00019448,2]
[362889865,1748512235220,-430.0,0.00019448,2]
[362889866,1748512235229,-430.0,0.00019448,2]
[362889867,1748512235239,-430.0,0.00019448,2]
[362889868,1748512235249,-430.0,0.00019448,2]
[362889869,1748512235260,-440.0,0.00019448,2]
[362889870,1748512235269,-430.0,0.00019448,2]
[362889871,1748512235279,-400.0,0.00019448,2]
[362889872,1748512235288,-483.75,0.00019448,2]
[362889873,1748512235299,-430.0,0.00019448,2]
[362889874,1748512235308,-430.0,0.00019448,2]